bitfinex-derivatives/quotes_SOLF0:USTF0_20250127
["timestamp","ask_amount","ask_price","bid_price","bid_amount"]
[1737954474772,0.03308677,231.41,231.38,4.3242]
[1737954475266,0.03308677,231.41,231.37,4.3243]
[1737954479271,0.03308677,231.41,231.36,16.8813277]
[1737954479668,4.3244,231.37,231.36,2.04669736]
[1737954479874,19.01620802,231.4,231.21,5.2367]
[1737954480072,21.77670802,231.36,231.21,5.2367]
[1737954480268,4.3257,231.3,231.21,5.2367]
[1737954480468,2.2249,231.35,231.23,4.327]
[1737954480671,2.2249,231.35,231.21,2.8269]
[1737954480865,0.02889576,231.31,231.27,0.02730357]
[1737954481571,0.02889576,231.31,231.29,4.3259]
[1737954482273,4.9882,231.47,231.35,4.3247]
[1737954482571,4.9882,231.47,231.27,0.02730357]
[1737954482572,4.9882,231.47,231.26,4.6424]
[1737954483368,0.0293687,231.39,231.34,0.0288305]
[1737954483673,0.0293687,231.39,231.35,4.3247]
[1737954483974,0.0293687,231.39,231.34,0.0288305]
[1737954484378,0.0293687,231.39,231.37,4.3244]
[1737954484870,0.0293687,231.39,231.34,6.3388305]
[1737954485270,0.0293687,231.39,231.37,4.3243]
[1737954485576,0.0293687,231.39,231.34,6.3388305]
[1737954485577,2.4023,231.51,231.36,19.01620802]
[1737954486374,2.4023,231.51,231.37,2.286]
[1737954486574,19.01620802,231.56,231.37,2.286]
[1737954486777,0.03170784,231.46,231.42,0.02837329]
[1737954487684,0.03170784,231.46,231.43,4.3233]
[1737954487974,0.03170784,231.46,231.42,0.02837329]
[1737954491384,0.03170784,231.46,231.44,4.323]
[1737954492588,0.03170784,231.46,231.42,0.02837329]
[1737954492785,0.03170784,231.46,231.45,4.3229]
[1737954493389,0.03170784,231.46,231.42,0.02837329]
[1737954493683,0.03170784,231.46,231.44,4.3231]
[1737954494688,0.03170784,231.46,231.42,4.35167329]
[1737954495186,0.03170784,231.46,231.42,0.02837329]
[1737954496996,0.03170784,231.46,231.42,4.35167329]
[1737954497293,0.03170784,231.46,231.42,0.02837329]
[1737954497693,4.35450784,231.46,231.42,4.35187329]
[1737954497894,4.35450784,231.46,231.42,0.02837329]
[1737954498296,4.323,231.45,231.42,0.02837329]
[1737954498889,4.3231,231.44,231.42,0.02837329]
[1737954499096,0.03170784,231.46,231.42,0.02837329]
[1737954500092,4.3233,231.43,231.42,0.02837329]
[1737954500394,0.03170784,231.46,231.42,0.02837329]
[1737954500594,0.03170784,231.46,231.42,4.35187329]
[1737954500991,0.03170784,231.46,231.42,0.02837329]
[1737954501195,0.03170784,231.46,231.45,4.3229]
[1737954502099,0.03170784,231.46,231.42,0.02837329]
[1737954503690,4.3239,231.4,231.34,10.6349]
[1737954503899,2.4558,231.48,231.34,6.31]
[1737954504198,2.7549,231.47,231.34,6.31]
[1737954504493,16.1685343,231.44,231.34,6.31]
[1737954504694,11.8452343,231.44,231.34,6.31]
[1737954504997,0.03207799,231.41,231.37,0.02732404]
[1737954505795,11.8452343,231.57,231.4,11.8452343]
[1737954506194,4.3215,231.53,231.4,11.8452343]
[1737954506496,4.3215,231.53,231.37,11.8452343]
[1737954506698,4.3215,231.53,231.34,6.31]
[1737954506699,4.3215,231.53,231.4,18.93052891]
[1737954506893,4.3215,231.53,231.43,4.3231]
[1737954507094,0.02820364,231.49,231.44,0.03048888]
[1737954507300,18.93052891,231.56,231.34,6.31]
[1737954507600,4.3226,231.47,231.44,0.02741733]
[1737954508198,0.03206958,231.49,231.44,0.02741733]
[1737954508403,4.3229,231.45,231.44,0.02741733]
[1737954508903,4.3239,231.4,231.34,6.31]
[1737954509204,23.87462891,231.48,231.34,6.31]
[1737954509698,4.3242,231.39,231.34,6.31]
[1737954510219,4.35517703,231.39,231.34,6.34053957]
[1737954510638,0.03097703,231.39,231.34,6.34053957]
[1737954511408,4.3246,231.36,231.34,6.34053957]
[1737954512204,4.3261,231.28,231.22,2.2325]
[1737954512400,2.8149,231.37,231.22,2.2325]
[1737954512601,18.93052891,231.36,231.21,80.92]
[1737954512798,18.93052891,231.32,231.21,80.92]
[1737954513109,18.93052891,231.32,231.17,2.322]
[1737954513303,18.93052891,231.32,231.15,2.2391]
[1737954513604,0.02861765,231.29,231.24,8.431e-05]
[1737954514404,18.93052891,231.28,231.24,8.431e-05]
[1737954514599,2.2798,231.27,231.24,8.431e-05]
[1737954514800,2.2798,231.27,231.08,2.2849]
[1737954515006,18.93052891,231.22,231.08,2.2849]
[1737954515605,4.3288,231.14,231.08,2.2849]
[1737954516105,0.02813506,231.13,231.09,0.03254644]
[1737954518107,4.35703506,231.13,231.09,0.03254644]
[1737954519711,0.02813506,231.13,231.09,0.03254644]
[1737954523805,4.3295,231.1,231.09,0.03254644]
[1737954531006,0.02813506,231.13,231.09,0.03254644]
[1737954531712,4.35703506,231.13,231.09,0.03254644]
[1737954532012,0.02813506,231.13,231.09,0.03254644]
[1737954532308,0.02813506,231.13,231.09,4.36224644]
[1737954532506,0.02813506,231.13,231.09,0.03254644]
[1737954533413,4.35713506,231.13,231.09,0.03254644]
[1737954533737,0.02813506,231.13,231.09,0.03254644]
[1737954535149,4.3293,231.11,231.09,0.03254644]
[1737954535444,0.02813506,231.13,231.09,0.03254644]
[1737954536238,4.3295,231.1,231.09,0.03254644]
[1737954536740,0.02813506,231.13,231.09,0.03254644]
[1737954536933,4.3295,231.1,231.09,0.03254644]
[1737954537239,0.02813506,231.13,231.03,80.92]
[1737954537534,4.3305,231.05,230.95,21.35082891]
[1737954537735,2.4333,231.14,230.98,4.3316]
[1737954537936,2.4333,231.14,230.95,21.35082891]
[1737954538331,4.3304,231.06,230.98,4.3317]
[1737954538527,4.3304,231.06,231.02,0.03177836]
[1737954538729,0.03232802,231.07,231.02,0.03177836]
[1737954539832,4.3305,231.05,231.02,0.03177836]
[1737954540236,4.3305,231.05,230.83,18.93052891]
[1737954540237,18.93052891,231.04,230.83,18.93052891]
[1737954540442,18.93052891,231.0,230.82,5.1909]
[1737954541128,18.93052891,230.96,230.75,18.93052891]
[1737954541325,18.93052891,230.92,230.73,2.8118]
[1737954541525,18.93052891,230.92,230.72,2.271]
[1737954541526,4.3343,230.84,230.83,7.956e-05]
[1737954541723,4.3343,230.84,230.64,54.97084405]
[1737954541724,18.93052891,230.84,230.64,54.97084405]
[1737954541917,18.93052891,230.77,230.64,54.97084405]
[1737954542116,4.3364,230.73,230.64,54.97084405]
[1737954542320,2.37,230.76,230.64,54.97084405]
[1737954542721,2.37,230.76,230.55,176.69888802]
[1737954542921,4.3363,230.74,230.71,0.03263623]
[1737954543123,4.3363,230.74,230.61,4.3386]
[1737954543422,4.3363,230.74,230.7,0.02761194]
[1737954543622,4.3363,230.74,230.55,176.69888802]
[1737954543623,4.3369,230.71,230.59,4.339]
[1737954543922,18.93052891,230.73,230.55,176.69888802]
[1737954544723,2.37,230.76,230.54,23.58062891]
[1737954544914,0.03042031,230.66,230.62,0.03203098]
[1737954545115,0.03042031,230.66,230.54,23.58062891]
[1737954545324,6.7059,230.76,230.54,23.58062891]
[1737954545524,0.03179367,230.66,230.62,0.03074765]
[1737954545924,2.37,230.76,230.59,18.93052891]
[1737954546126,0.02751236,230.66,230.62,0.02973968]
[1737954546530,2.37,230.76,230.58,18.93052891]
[1737954546829,0.03327178,230.66,230.63,4.3382]
[1737954547027,2.37,230.76,230.54,23.58062891]
[1737954547326,2.37,230.76,230.6,18.93052891]
[1737954547625,18.93052891,230.81,230.6,18.93052891]
[1737954547826,2.8481,230.82,230.64,18.93052891]
[1737954548027,18.93052891,230.85,230.65,2.8533]
[1737954548221,18.93052891,230.85,230.71,0.02835316]
[1737954548421,0.03154966,230.75,230.72,4.3365]
[1737954548625,18.93052891,230.81,230.66,2.289]
[1737954548826,0.03188694,230.8,230.76,0.02990857]
[1737954549026,0.03188694,230.8,230.66,2.289]
[1737954549226,0.03188694,230.8,230.76,0.02779976]
[1737954549428,18.93052891,230.85,230.66,2.289]
[1737954549623,0.03105119,230.8,230.76,0.02953415]
[1737954549826,0.03105119,230.8,230.73,0.03262384]
[1737954550329,0.03310593,230.79,230.73,0.03262384]
[1737954553931,0.03310593,230.79,230.74,4.3361]
[1737954554230,0.03310593,230.79,230.73,0.03262384]
[1737954554531,4.3355,230.78,230.73,0.03262384]
[1737954555027,0.03310593,230.79,230.73,0.03262384]
[1737954556326,4.36840593,230.79,230.73,0.03262384]
[1737954556628,0.03310593,230.79,230.73,0.03262384]
[1737954557733,0.03310593,230.79,230.75,4.3359]
[1737954557933,0.03310593,230.79,230.73,0.03262384]
[1737954557934,8.6615,231.04,230.76,18.93052891]
[1737954558134,6.0435,230.98,230.76,18.93052891]
[1737954558524,4.3334,230.89,230.83,4.3345]
[1737954559033,0.02895315,230.88,230.84,0.02971068]
[1737954559927,4.3342,230.85,230.84,0.02971068]
[1737954560134,18.93052891,230.87,230.67,21.44412891]
[1737954560326,2.4101,230.87,230.71,18.93052891]
[1737954560530,4.3336,230.88,230.81,4.3348]
[1737954560836,18.93052891,230.91,230.71,18.93052891]
[1737954561027,2.4101,230.94,230.88,4.3336]
[1737954561334,18.93052891,230.99,230.79,18.96075394]
[1737954561526,18.93052891,230.99,230.8,5.3165]
[1737954562132,4.3319,230.97,230.9,4.3332]
[1737954562532,0.03213167,230.96,230.91,0.0281885]
[1737954562730,18.93052891,230.95,230.91,0.0281885]
[1737954562931,18.9591652,230.95,230.8,2.4091]
[1737954563133,18.93052891,230.95,230.8,2.4091]
[1737954563830,4.3332,230.9,230.83,4.3345]
[1737954564035,4.3332,230.9,230.8,2.4091]
[1737954564232,0.03242807,230.89,230.84,0.02935188]
[1737954567132,0.03242807,230.89,230.84,4.36365188]
[1737954569237,0.03242807,230.89,230.84,0.02935188]
[1737954569844,0.03242807,230.89,230.88,4.3336]
[1737954570544,7.4871,231.02,230.85,2.8728]
[1737954570942,7.4871,231.02,230.92,4.3328]
[1737954571138,7.4871,231.02,230.85,2.8728]
[1737954571545,0.02907984,230.96,230.91,0.03142985]
[1737954571744,0.02907984,230.96,230.92,4.3327]
[1737954571947,0.02907984,230.96,230.91,0.03142985]
[1737954573337,4.3328,230.93,230.91,0.03142985]
[1737954573948,0.02907984,230.96,230.91,0.03142985]
[1737954574752,4.3326,230.94,230.91,0.03142985]
[1737954575344,0.02907984,230.96,230.91,0.03142985]
[1737954576854,0.02907984,230.96,230.91,4.36442985]
[1737954577055,0.02907984,230.96,230.91,0.03142985]
[1737954577553,0.02907984,230.96,230.94,4.3324]
[1737954579256,18.93052891,231.11,230.91,0.03142985]
[1737954579554,18.93052891,231.11,230.87,18.93052891]
[1737954580349,0.03198839,231.01,230.98,4.3317]
[1737954580552,4.3307,231.04,230.98,4.3317]
[1737954580755,4.36175847,231.02,230.97,0.0315343]
[1737954581054,0.03065847,231.02,230.87,18.93052891]
[1737954581356,4.3306,231.05,230.98,4.3316]
[1737954581551,0.02914104,230.97,230.92,0.02803422]
[1737954581758,18.93052891,231.11,230.92,2.446]
[1737954581952,4.3304,231.06,230.99,4.3315]
[1737954582156,4.3304,231.06,230.92,2.446]
[1737954582757,0.03211497,231.01,230.97,0.02909238]
[1737954583057,0.03211497,231.01,231.0,4.3313]
[1737954589358,2.929,231.12,231.0,11.87905516]
[1737954590068,2.929,231.12,230.97,11.87905516]
[1737954590359,11.87905516,231.04,230.9,2.9863]
[1737954590564,4.3316,230.99,230.88,81.06]
[1737954590759,11.87905516,231.07,230.95,0.02854114]
[1737954591263,4.3306,231.05,230.95,0.02854114]
[1737954591463,4.3306,231.05,230.94,11.87905516]
[1737954591960,14.29125516,231.1,230.94,11.87905516]
[1737954592164,14.29125516,231.1,230.98,4.3317]
[1737954592367,14.29125516,231.1,231.0,0.02804119]
[1737954592368,0.03181706,231.04,231.0,0.02804119]
[1737954592565,11.91087222,231.04,231.0,0.02804119]
[1737954592760,11.91087222,231.04,230.89,2.9863]
[1737954592761,11.87905516,231.01,230.89,2.9863]
[1737954592966,11.87905516,231.01,230.88,81.06]
[1737954593467,11.87905516,230.98,230.88,81.06]
[1737954593866,0.02849759,230.95,230.91,0.02979724]
[1737954594564,0.02849759,230.95,230.91,4.36279724]
[1737954594761,0.02849759,230.95,230.91,0.02979724]
[1737954595166,0.02849759,230.95,230.94,4.3325]
[1737954596563,2.4122,231.1,230.94,4.3325]
[1737954596564,14.29125516,231.1,230.94,11.87905516]
[1737954596765,4.3302,231.07,231.0,4.3313]
[1737954597366,4.3302,231.06,230.94,11.87905516]
[1737954597570,4.3302,231.06,230.98,4.3315]
[1737954597771,0.03134033,231.02,230.98,4.35887381]
[1737954597975,4.36234033,231.02,230.98,0.02737381]
[1737954598476,4.3315,231.0,230.98,0.02737381]
[1737954598775,0.03134033,231.02,230.98,0.02737381]
[1737954600466,19.04760181,231.02,230.85,2.3081]
[1737954600671,4.3325,230.94,230.87,4.3337]
[1737954600872,19.01626148,231.02,230.87,4.3337]
[1737954601268,19.01626148,231.02,230.88,4.3336]
[1737954601676,4.3323,230.95,230.93,0.03122864]
[1737954602176,0.03236679,230.97,230.96,4.3321]
[1737954605275,2.4936,231.09,231.02,4.3308]
[1737954605478,2.4936,231.09,230.95,19.01626148]
[1737954605674,2.9671,231.14,230.96,2.5041]
[1737954606175,19.01626148,231.12,230.96,2.5041]
[1737954606377,0.03301777,231.07,231.03,0.03143002]
[1737954607272,0.03301777,231.07,231.05,4.3304]
[1737954609376,0.03301777,231.07,231.06,4.3302]
[1737954609780,0.03301777,231.07,231.03,0.03143002]
[1737954610680,0.03301777,231.07,231.06,4.3302]
[1737954612277,0.03301777,231.07,231.05,4.3304]
[1737954612583,0.03301777,231.07,231.03,0.03143002]
[1737954612980,0.03301777,231.07,231.06,4.3302]
[1737954613180,4.3289,231.14,231.03,19.0476915]
[1737954613782,4.3289,231.13,231.03,19.0476915]
[1737954613982,4.3289,231.13,231.03,19.01626148]
[1737954614277,0.02982071,231.1,231.06,0.02775686]
[1737954614481,0.02982071,231.1,230.86,19.01626148]
[1737954614682,19.01626148,231.07,230.92,2.534]
[1737954614878,2.8117,231.06,230.92,2.534]
[1737954615079,5.3459,231.06,230.93,4.3326]
[1737954615285,5.3459,231.06,230.92,2.534]
[1737954615683,0.03274028,231.01,230.97,0.03326369]
[1737954616080,4.36394028,231.01,230.97,0.03326369]
[1737954616281,0.03274028,231.01,230.97,0.03326369]
[1737954616487,0.03274028,231.01,230.83,2.796]
[1737954616681,4.3325,230.94,230.86,4.3339]
[1737954617783,0.03244327,230.92,230.88,0.03059124]
[1737954618185,0.03244327,230.92,230.88,4.36419124]
[1737954618386,0.03244327,230.92,230.88,0.03059124]
[1737954621682,0.03244327,230.92,230.9,4.3332]
[1737954622685,2.5576,231.05,230.88,0.03059124]
[1737954622882,2.5576,231.05,230.84,19.01626148]
[1737954623390,4.331,231.02,230.96,4.332]
[1737954623786,0.03192268,231.01,230.97,0.02941531]
[1737954624085,0.03192268,231.01,230.97,4.36121531]
[1737954624685,19.01626148,231.07,230.97,4.3318]
[1737954624886,0.02935606,231.01,230.97,4.35983279]
[1737954625283,0.02935606,231.01,230.97,0.02803279]
[1737954625784,4.3317,230.98,230.97,0.02803279]
[1737954628788,19.01626148,230.99,230.83,2.796]
[1737954629292,19.01626148,230.99,230.87,4.3338]
[1737954629590,19.01626148,230.99,230.83,2.796]
[1737954629982,0.03031432,230.93,230.89,0.02793982]
[1737954631090,0.03031432,230.93,230.89,4.36133982]
[1737954633192,0.03031432,230.93,230.89,0.02793982]
[1737954634194,4.36301432,230.93,230.89,0.02793982]
[1737954635395,4.3329,230.92,230.89,0.02793982]
[1737954636196,0.03031432,230.93,230.89,0.02793982]
[1737954637095,4.36301432,230.93,230.89,0.02793982]
[1737954638899,4.3332,230.9,230.89,0.02793982]
[1737954640408,0.03031432,230.93,230.89,0.02793982]
[1737954641402,0.03031432,230.93,230.92,4.3328]
[1737954642301,0.03031432,230.93,230.89,0.02793982]
[1737954642506,0.03031432,230.93,230.9,4.333]
[1737954643109,0.03031432,230.93,230.91,4.3329]
[1737954643608,0.03031432,230.93,230.92,4.3328]
[1737954644910,0.03031432,230.93,230.89,0.02793982]
[1737954645805,4.3332,230.91,230.89,0.02793982]
[1737954646310,4.36311432,230.93,230.89,0.02793982]
[1737954647509,4.3329,230.92,230.89,0.02793982]
[1737954648509,4.3332,230.9,230.89,0.02793982]
[1737954648705,19.01626148,230.92,230.76,2.9214]
[1737954648913,24.34616148,230.92,230.76,2.9214]
[1737954649112,4.3333,230.9,230.82,4.3345]
[1737954649603,4.3339,230.87,230.8,4.3349]
[1737954649804,0.02958984,230.88,230.84,0.03204287]
[1737954650107,0.02958984,230.88,230.76,2.9214]
[1737954650411,0.02958984,230.88,230.84,0.03321318]
[1737954651310,4.334,230.86,230.84,0.03321318]
[1737954651708,4.334,230.86,230.69,19.01626148]
[1737954651709,19.04585132,230.88,230.64,31.36322773]
[1737954651908,4.3357,230.77,230.65,5.3569]
[1737954652107,19.01626148,230.83,230.65,5.3569]
[1737954653014,0.02780149,230.76,230.72,0.03156039]
[1737954654613,0.02780149,230.76,230.74,4.3362]
[1737954654813,0.02780149,230.76,230.72,0.03156039]
[1737954655837,4.36370149,230.76,230.72,0.03156039]
[1737954656519,0.02780149,230.76,230.72,0.03156039]
[1737954657111,0.02780149,230.76,230.75,4.336]
[1737954658018,0.02780149,230.76,230.72,0.03156039]
[1737954658019,4.3364,230.73,230.72,6.039e-05]
[1737954659320,24.43876148,230.75,230.72,6.039e-05]
[1737954660019,24.43876148,230.75,230.57,81.1]
[1737954660221,19.01626148,230.71,230.57,81.1]
[1737954661024,19.01626148,230.71,230.58,4.3392]
[1737954661427,0.03309268,230.66,230.62,0.03213598]
[1737954661724,4.3381,230.64,230.62,0.03213598]
[1737954661923,0.03309268,230.66,230.62,7.49213598]
[1737954662620,4.3382,230.64,230.62,7.49213598]
[1737954663018,0.03309268,230.66,230.62,7.49213598]
[1737954664726,0.03309268,230.66,230.63,4.3382]
[1737954665826,0.03309268,230.66,230.62,7.49213598]
[1737954669129,0.03309268,230.66,230.62,11.83053598]
[1737954672227,0.03309268,230.66,230.62,7.49213598]
[1737954672428,0.03309268,230.66,230.65,4.3379]
[1737954673733,4.336,230.75,230.7,4.337]
[1737954674037,4.336,230.75,230.63,11.91795302]
[1737954674233,11.91795302,230.78,230.63,11.91795302]
[1737954674432,4.3364,230.74,230.68,4.3374]
[1737954674734,11.91795302,230.78,230.68,4.3374]
[1737954674933,0.03289362,230.73,230.69,0.02952192]
[1737954676735,4.337,230.7,230.69,0.02952192]
[1737954677635,4.3378,230.66,230.57,81.1]
[1737954678137,4.3377,230.66,230.59,4.339]
[1737954678633,4.36817374,230.65,230.6,0.03144273]
[1737954679430,0.03017374,230.65,230.6,0.03144273]
[1737954679828,11.94812676,230.65,230.6,0.03144273]
[1737954680834,4.3386,230.62,230.6,0.03144273]
[1737954682341,11.94812676,230.65,230.6,0.03144273]
[1737954683037,4.3387,230.61,230.6,0.03144273]
[1737954683235,11.94812676,230.65,230.6,0.03144273]
[1737954684032,0.03017374,230.65,230.6,0.03144273]
[1737954684339,4.3383,230.63,230.6,0.03144273]
[1737954684835,0.03017374,230.65,230.6,0.03144273]
[1737954685036,4.36827374,230.65,230.6,0.03144273]
[1737954685340,0.03017374,230.65,230.6,0.03144273]
[1737954685538,4.3384,230.63,230.6,0.03144273]
[1737954685934,0.03017374,230.65,230.6,0.03144273]
[1737954686343,0.03017374,230.65,230.61,11.91795302]
[1737954687341,0.03017374,230.65,230.64,4.3381]
[1737954688142,4.3363,230.74,230.68,4.3373]
[1737954688539,4.3364,230.73,230.68,4.3373]
[1737954688745,4.3364,230.73,230.66,4.3376]
[1737954689446,0.02890356,230.72,230.67,4.37075393]
[1737954691944,0.02890356,230.72,230.67,0.03325393]
[1737954693143,0.02890356,230.72,230.68,4.3373]
[1737954693846,0.02890356,230.72,230.71,4.3368]
[1737954695750,4.3352,230.8,230.74,4.3362]
[1737954696346,2.4854,230.84,230.7,11.91795302]
[1737954696544,2.4854,230.84,230.76,4.3358]
[1737954696851,0.02848911,230.79,230.76,4.3358]
[1737954698650,0.02848911,230.79,230.75,4.36716074]
[1737954698848,0.02848911,230.79,230.75,0.03116074]
[1737954699047,11.91795302,230.77,230.68,2.39]
[1737954699248,4.3364,230.74,230.68,2.39]
[1737954700051,4.336,230.76,230.68,2.39]
[1737954700252,0.02805672,230.73,230.69,0.03257058]
[1737954700449,11.91795302,230.81,230.68,2.39]
[1737954700748,0.02908076,230.73,230.69,0.03170532]
[1737954701852,4.337,230.7,230.69,0.03170532]
[1737954702042,11.94703378,230.73,230.57,11.91795302]
[1737954702247,11.91795302,230.73,230.55,2.5252]
[1737954702549,4.3378,230.66,230.56,4.3396]
[1737954702853,4.7913,230.72,230.55,2.5252]
[1737954703049,11.91795302,230.69,230.55,2.5252]
[1737954703251,0.03096301,230.66,230.61,0.03246135]
[1737954704349,4.3384,230.63,230.61,0.03246135]
[1737954705353,11.91795302,230.65,230.51,81.18]
[1737954705554,11.91795302,230.65,230.45,14.87995302]
[1737954705753,11.91795302,230.61,230.45,14.87995302]
[1737954706153,11.91795302,230.61,230.45,22.34995302]
[1737954706456,0.02989647,230.55,230.51,0.02992728]
[1737954707656,4.3404,230.52,230.51,0.02992728]
[1737954708048,11.91795302,230.54,230.45,7.47]
[1737954708253,4.3406,230.51,230.45,7.47]
[1737954708452,11.91795302,230.54,230.45,7.47]
[1737954709051,2.9285,230.56,230.45,11.8115]
[1737954709254,0.02895291,230.52,230.47,0.03138351]
[1737954709559,4.36945291,230.52,230.47,0.03138351]
[1737954709754,0.02895291,230.52,230.47,0.03138351]
[1737954711157,0.02895291,230.52,230.47,11.94933653]
[1737954711354,0.02895291,230.52,230.47,0.03138351]
[1737954711658,0.02895291,230.52,230.5,4.3407]
[1737954712662,4.3388,230.61,230.54,4.3399]
[1737954712961,4.3382,230.64,230.51,11.91795302]
[1737954713156,11.91795302,230.66,230.47,11.91795302]
[1737954713354,11.91795302,230.66,230.52,4.3402]
[1737954713553,4.3394,230.57,230.47,11.91795302]
[1737954713755,11.91795302,230.62,230.47,11.91795302]
[1737954713956,0.03075964,230.54,230.5,0.029463]
[1737954714258,0.03075964,230.54,230.52,4.3404]
[1737954714765,5.964e-05,230.54,230.52,4.3404]
[1737954714959,5.964e-05,230.54,230.5,4.370063]
[1737954715160,5.964e-05,230.54,230.5,0.029463]
[1737954715861,5.964e-05,230.54,230.52,4.3403]
[1737954716062,5.964e-05,230.54,230.5,0.029463]
[1737954716463,5.964e-05,230.54,230.5,4.370063]
[1737954717758,5.964e-05,230.54,230.5,0.029463]
[1737954718465,5.964e-05,230.54,230.51,4.3405]
[1737954719858,5.964e-05,230.54,230.5,0.029463]
[1737954720464,4.3402,230.53,230.5,0.029463]
[1737954720666,5.964e-05,230.54,230.5,0.029463]
[1737954721060,4.34005964,230.54,230.5,0.029463]
[1737954721460,5.964e-05,230.54,230.5,0.029463]
[1737954722266,5.964e-05,230.54,230.53,4.3402]
[1737954722858,5.964e-05,230.54,230.5,4.370163]
[1737954723061,5.964e-05,230.54,230.5,0.029463]
[1737954723368,4.3402,230.53,230.5,0.029463]
[1737954723566,5.964e-05,230.54,230.5,0.029463]
[1737954723868,4.3405,230.51,230.5,0.029463]
[1737954724065,5.964e-05,230.54,230.5,0.029463]
[1737954727669,11.91801266,230.54,230.5,0.029463]
[1737954727866,11.91801266,230.54,230.5,6.3e-05]
[1737954728264,2.4092,230.53,230.5,6.3e-05]
[1737954729171,16.25845302,230.51,230.5,6.3e-05]
[1737954729371,11.91795302,230.51,230.35,5.1139]
[1737954729568,11.91795302,230.48,230.35,5.1139]
[1737954729773,11.91795302,230.48,230.36,4.3433]
[1737954729974,2.3701,230.5,230.36,11.91795302]
[1737954730575,0.02809293,230.45,230.41,0.03244066]
[1737954731577,4.916,230.6,230.49,4.3408]
[1737954731985,4.3398,230.55,230.49,4.3408]
[1737954732177,4.3398,230.55,230.48,4.3411]
[1737954732682,0.02932015,230.54,230.49,0.0280308]
[1737954733284,0.02932015,230.54,230.49,4.3689308]
[1737954733478,0.02932015,230.54,230.49,11.94598382]
[1737954733780,0.02932015,230.54,230.51,4.3405]
[1737954734481,0.02932015,230.54,230.52,4.3403]
[1737954734884,0.02932015,230.54,230.49,11.94598382]
[1737954735180,0.02932015,230.54,230.49,0.0280308]
[1737954736177,4.3402,230.53,230.49,0.0280308]
[1737954736380,0.02932015,230.54,230.49,0.0280308]
[1737954736787,4.3406,230.51,230.49,0.0280308]
[1737954738491,4.3403,230.53,230.49,0.0280308]
[1737954739790,0.02932015,230.54,230.49,0.0280308]
[1737954740489,0.02932015,230.54,230.53,4.3402]
[1737954740989,4.3385,230.62,230.56,4.3395]
[1737954741385,2.9171,230.65,230.5,11.91795302]
[1737954741585,4.3383,230.63,230.5,11.91795302]
[1737954741789,2.9171,230.65,230.47,7.5863]
[1737954741790,11.91795302,230.64,230.47,7.5863]
[1737954741991,4.3395,230.57,230.54,0.02894033]
[1737954742594,4.3397,230.56,230.54,0.02894033]
[1737954742788,0.0324127,230.59,230.54,0.02894033]
[1737954744286,0.0324127,230.59,230.54,4.36874033]
[1737954744491,0.0324127,230.59,230.54,0.02894033]
[1737954746094,4.3396,230.57,230.54,0.02894033]
[1737954746395,0.0324127,230.59,230.54,0.02894033]
[1737954746893,4.3395,230.57,230.54,0.02894033]
[1737954747289,0.0324127,230.59,230.54,0.02894033]
[1737954748896,4.3716127,230.59,230.54,0.02894033]
[1737954749999,4.3398,230.55,230.54,0.02894033]
[1737954761201,4.3398,230.55,230.43,7.7239]
[1737954761202,11.91795302,230.56,230.38,11.91795302]
[1737954761501,11.91795302,230.52,230.34,19.81865302]
[1737954762101,4.3413,230.48,230.39,4.3427]
[1737954762299,11.91795302,230.52,230.34,19.81865302]
[1737954762600,0.0283328,230.46,230.41,0.03000331]
[1737954762798,4.342,230.44,230.41,0.03000331]
[1737954763197,0.0283328,230.46,230.41,0.03000331]
[1737954764700,4.3422,230.42,230.41,0.03000331]
[1737954765105,11.91795302,230.44,230.33,81.16]
[1737954765404,11.91795302,230.44,230.25,11.91795302]
[1737954765803,4.3436,230.35,230.27,4.345]
[1737954766100,11.91795302,230.4,230.27,4.345]
[1737954766306,0.03186498,230.33,230.29,0.03326108]
[1737954766496,4.3443,230.31,230.29,0.03326108]
[1737954767203,0.03186498,230.33,230.29,0.03326108]
[1737954772009,4.3444,230.31,230.29,0.03326108]
[1737954773210,4.37576498,230.33,230.29,0.03326108]
[1737954773605,0.03186498,230.33,230.29,0.03326108]
[1737954773810,4.3445,230.3,230.29,0.03326108]
[1737954774809,0.03186498,230.33,230.29,0.03326108]
[1737954775008,4.3444,230.31,230.29,0.03326108]
[1737954775305,0.03186498,230.33,230.29,0.03326108]
[1737954775510,11.91795302,230.31,230.16,47.19650199]
[1737954775913,4.3449,230.28,230.21,4.3462]
[1737954776110,11.91795302,230.31,230.16,47.19650199]
[1737954776111,11.91795302,230.31,230.17,2.4307]